[Event "ESP-ch Teams Primera 2022"]
[Site "Sanxenxo Pontevedra"]
[Date "2022.09.23"]
[Round "7.3"]
[White "Quispe Arteaga, Gabriel"]
[Black "Ponomariov, Ruslan"]
[Result "1/2-1/2"]
[ECO "D11"]
[WhiteElo "2373"]
[BlackElo "2640"]
[Annotator "TA"]
[PlyCount "129"]
[EventDate "2022.09.17"]
[EventType "team-tourn"]
[EventCountry "ESP"]
[SourceTitle "playchess.com"]
[Source "ChessBase"]
[SourceQuality "1"]
[TimeControl "5400+30"]

{[%evp 9,129,24,47,32,53,50,57,30,33,22,14,17,19,21,38,3,2,1,0,7,7,0,6,0,0,0,0,0,6,7,8,0,7,0,0,0,0,0,0,0,0,0,0,0,0,-8,-12,-7,-6,-11,-11,-17,-21,-21,-14,-28,-22,-27,-21,-20,-10,-54,-14,-25,0,0,0,0,0,-51,-50,-73,-14,-29,-26,-52,-52,-162,0,0,0,-81,-81,-81,-81,-81,-81,-367,-115,-186,-115,-235,-235,-183,-88,-88,-88,-88,-88,-88,-88,-88,-88,-116,-116,-183,-183,-179,-162,-162,-96,-152,0,0,0,0,0,0,0,0,0,0]} 1. d4 {[%emt 0:00:04]} Nf6 {[%emt 0:00:22]} 2. c4 {[%emt 0:00:05]} c6 {[%emt 0:00:18]} 3. Nf3 {[%emt 0:02:06]} d5 {[%emt 0:00:12]} 4. e3 {[%emt 0:00:08]} Bg4 {[%emt 0:05:09]} 5. Qb3 {[%emt 0:09:30]} Qc7 {[%emt 0:14:48]} 6. Ne5 {[%emt 0:06:15] D11: Slav Defence: 3 Nf3 sidelines and 3...Nf6 4 e3 Bg4.} e6 {[%emt 0:06:58]} 7. Nxg4 {[%emt 0:04:44]} Nxg4 {[%emt 0:00:08]} 8. h3 {[%emt 0:00:43] White is slightly better.} Nf6 {[%emt 0:00:05]} 9. Nc3 {[%emt 0:00:28]} Nbd7 {[%emt 0:01:43]} 10. Bd2 {[%emt 0:00:21]} Nb6 {[%emt 0:03:59]} 11. Rc1 {[%emt 0:05:24]} Be7 {[%emt 0:03:00] [#]} 12. Bd3 $146 {[%emt 0:15:09]} ({Predecessor:} 12. a4 O-O 13. cxd5 Nbxd5 14. Bd3 Qb6 15. Qxb6 axb6 16. Nxd5 Nxd5 17. b3 Bb4 18. Bc4 {½-½ (18) Stopa,J (2478)-Rustemov,A (2564) Legnica 2005}) 12... dxc4 {[%emt 0:05:37]} 13. Bxc4 {[%emt 0:00:05]} Nxc4 {[%emt 0:00:14]} 14. Qxc4 {[%emt 0:00:05]} O-O {[%emt 0:00:06]} 15. O-O {[%emt 0:00:07]} Rfd8 {[%emt 0:00:09]} 16. Rfd1 {[%emt 0:01:40]} Rd7 {[%emt 0:00:32]} 17. Ne2 {[%emt 0:01:53]} Rad8 {[%emt 0:05:08]} 18. Qa4 {[%emt 0:00:35]} Qb8 {[%emt 0:00:56]} 19. Ba5 {[%emt 0:00:27]} Rc8 {[%emt 0:01:01]} 20. Be1 {[%emt 0:00:18]} h6 {[%emt 0:02:29]} 21. a3 {[%emt 0:00:29]} a6 {[%emt 0:01:04]} 22. Nf4 {[%emt 0:02:36]} c5 {[%emt 0:03:34]} 23. dxc5 {[%emt 0:00:44]} Rxd1 {[%emt 0:00:14]} 24. Rxd1 {[%emt 0:03:11]} Bxc5 {[%emt 0:00:51]} 25. Rc1 {[%emt 0:11:10]} Bd6 {[%emt 0:04:58]} 26. Rxc8+ {[%emt 0:00:05]} Qxc8 {[%emt 0:00:03]} 27. Ne2 {[%emt 0:02:19]} Nd5 {[%emt 0:02:06]} 28. Nc3 {[%emt 0:00:29]} Nb6 {[%emt 0:00:47]} 29. Qd4 {[%emt 0:00:51]} Qc7 {[%emt 0:00:37]} 30. Qd3 {[%emt 0:14:06]} Nc4 {[%emt 0:02:27]} 31. Nd1 {[%emt 0:00:16]} b5 {[%emt 0:05:22]} 32. Bc3 {[%emt 0:00:23]} Qc6 {[%emt 0:01:29]} 33. Kf1 {[%emt 0:00:10]} Be7 {[%emt 0:04:10]} 34. e4 {[%emt 0:00:48]} Bg5 {[%emt 0:02:19]} 35. g3 {[%emt 0:01:27]} h5 {[%emt 0:02:26]} 36. h4 {[%emt 0:00:14]} (36. Ke2 {is more complex.} h4 37. f4 Be7 38. gxh4 Bxh4 39. Ne3) 36... Be7 {[%emt 0:00:26]} 37. Ne3 {[%emt 0:00:22]} Nd6 {[%emt 0:02:38]} 38. Bb4 {[%emt 0:00:56] Strongly threatening e5.} a5 {[%emt 0:00:30]} 39. Bxd6 {[%emt 0:00:05]} (39. Bxa5 $11 Nxe4 40. Bb4 Bxb4 41. axb4) 39... Bxd6 $11 {[%emt 0:00:04][%mdl 4096] Endgame KQB-KQN} 40. Qc2 {[%emt 0:00:36]} Qb7 {[%emt 0:01:21]} (40... Qxc2 $17 41. Nxc2 Be5) 41. Qd3 {[%emt 0:00:32]} Be7 {[%emt 0:01:20]} 42. Nc2 {[%emt 0:02:02]} a4 {[%emt 0:03:07]} 43. Nd4 {[%emt 0:04:37]} (43. Nb4 $15) 43... b4 $2 {[%emt 0:05:34]} ({Better is} 43... Qd7 $1 $19 44. Ke2 Bc5 45. Nxb5 Qxd3+ 46. Kxd3 Bxf2) 44. axb4 {[%emt 0:00:04]} Bf6 {[%emt 0:03:28]} 45. e5 {[%emt 0:03:44]} (45. Nf3 $11 {keeps the balance.}) 45... Bxe5 $17 {[%emt 0:00:41]} 46. Nf3 {[%emt 0:00:06]} Bf6 {[%emt 0:01:20] Threatens to win with ...g6.} 47. b5 {[%emt 0:02:15]} g6 {[%emt 0:01:04]} 48. Ng5 $2 {[%emt 0:01:27][%mdl 8192]} (48. Kg2 $17) 48... Bxb2 $2 {[%emt 0:00:31]} (48... Qh1+ $1 $19 49. Ke2 Qc1) 49. Qd8+ {[%emt 0:00:03]} Kg7 {[%emt 0:00:09]} 50. Qa5 {[%emt 0:01:21]} (50. b6 $17 a3 51. Qc7 Qxc7 52. bxc7) 50... a3 $19 {[%emt 0:02:40]} 51. b6 {[#]} Qd5 {[%emt 0:01:56]} (51... Qh1+ $1 $19 {and Black stays clearly on top.} 52. Ke2 Qc1) 52. Qa7 $17 {[%emt 0:00:47]} e5 {[%emt 0:00:59] Hoping for ...a2.} 53. b7 {[%emt 0:00:05]} a2 {[%emt 0:00:14]} 54. b8=Q {[%emt 0:02:46]} a1=Q+ {[%emt 0:00:05]} 55. Qxa1 {[%emt 0:00:16]} Bxa1 {[%emt 0:00:01] KQB-KQN} 56. Qb4 {[%emt 0:00:24]} Bd4 {[%emt 0:00:57]} 57. Qe1 {[%emt 0:00:05] [#]} (57. Nh3 $17 {might work better.}) 57... Qh1+ $1 $19 {[%emt 0:02:42]} 58. Ke2 {[%emt 0:00:03]} Qc6 {[%emt 0:00:08]} 59. Kf1 {[%emt 0:00:03]} f6 {[%emt 0:01:07]} ({Black should play} 59... Bc3 $19 {( -> ...Qh1+)} 60. Qe4 Qxe4 61. Nxe4 Bb4) 60. Ne4 {[%emt 0:00:07]} (60. Nh3 $142) 60... g5 $2 {[%emt 0:00:46]} ({Black should try} 60... f5 $17 61. Ng5 Qh1+ 62. Ke2 Qxe1+ 63. Kxe1 Kf6) 61. Qb4 $1 $11 {[%emt 0:01:42] The position is equal.} Kf7 {[%emt 0:01:16]} 62. Qb3+ {[%emt 0:00:34]} Ke7 {[%emt 0:00:08]} 63. Qa3+ {[%emt 0:00:20]} Kd7 {[%emt 0:00:39]} 64. Qf3 {[%emt 0:00:04]} Ke7 {[%emt 0:00:30]} 65. hxg5 {[%emt 0:00:13] Weighted Error Value: White=0.21 (precise) /Black=0.17 (very precise)} 1/2-1/2

[Event "ESP-ch Teams Primera 2022"]
[Site "Sanxenxo Pontevedra"]
[Date "2022.09.23"]
[Round "7.4"]
[White "Franco Alonso, Alejandro"]
[Black "Ruiz Buendia, Miguel"]
[Result "1-0"]
[ECO "E10"]
[WhiteElo "2432"]
[BlackElo "2293"]
[Annotator "TA"]
[PlyCount "75"]
[EventDate "2022.09.17"]
[EventType "team-tourn"]
[EventCountry "ESP"]
[SourceTitle "playchess.com"]
[Source "ChessBase"]
[SourceQuality "1"]
[TimeControl "5400+30"]

{[%evp 18,75,12,14,3,0,1,0,0,0,104,100,115,100,134,128,125,134,164,139,156,106,105,93,83,78,221,181,170,187,175,154,149,141,176,188,175,174,163,169,501,318,320,318,565,558,656,656,797,682,626,652,992,974,29990,29991,29991,29992,29992,29993]} 1. d4 Nf6 2. c4 e6 3. Nf3 d5 4. g3 Bb4+ 5. Bd2 Be7 6. Bg2 O-O 7. O-O c6 8. Qc2 Nbd7 9. Bf4 b6 10. Rd1 {10.Nbd2 is more fashionable.} Ba6 {E08: Closed Catalan: Main Line: 7 Qc2.} 11. Ne5 Rc8 12. Nc3 Nh5 {The position is equal.} 13. Bc1 {[%cal Rc4d5] [#]} (13. Nxd7 Qxd7 14. cxd5 cxd5 $15) 13... h6 $146 {[#]} (13... Nxe5 14. dxe5 Qc7 15. g4 $16 (15. cxd5 cxd5 16. g4 Qxe5 $16)) (13... Nhf6 $11 {remains equal.}) ({Predecessor:} 13... Nhf6 14. Qa4 Bxc4 15. Nxc6 b5 16. Qxc4 bxc4 17. Nxd8 Rfxd8 18. Bf4 Nh5 19. Bd2 f5 {1-0 (53) Jumabayev,R (2617)-Hansen,E (2606) Chess.com INT 2022}) 14. e4 $1 $16 (14. cxd5 cxd5 15. Qa4 Nb8 $14) 14... Nhf6 (14... Nxe5 15. dxe5 Bxc4 16. g4 $14) 15. Qa4 Nb8 16. exd5 exd5 17. cxd5 b5 18. Qb3 {[%cal Rd5c6]} b4 19. Ne4 (19. dxc6 $142 {Black must now prevent Nd5.} bxc3 20. bxc3) 19... Nxd5 20. Bd2 {White is much more active.} Qb6 21. Nc5 Rfd8 {Prevents Ncd7. This costs Black the game.} (21... Bxc5 $16 {keeps fighting.} 22. dxc5 Qxc5) 22. Rac1 Bxc5 23. Rxc5 Nd7 24. Nxd7 Rxd7 25. Bh3 ({But not} 25. Bxd5 $6 Rxd5 26. Bxb4 (26. Qxb4 Qd8 $14) (26. Rxd5 cxd5 27. Bxb4 Re8 $11) 26... Be2 $14) 25... Rcd8 26. Bxd7 Rxd7 27. Rdc1 Rd6 28. Re1 {Strongly threatening Re8+.} Rf6 $2 (28... Rd8 29. Qf3 Rf8) 29. Qc2 {[%cal Re1e8] [#]} Nc7 {Inhibits Re8+.} 30. Bf4 {Hoping for Bxc7.} Ne6 (30... Re6 31. Rc1 Re2) 31. Rxc6 $18 Qb5 32. d5 Bb7 33. Rc8+ ({Weaker is} 33. dxe6 Qxc6 34. Qxc6 Bxc6 $16) 33... Bxc8 34. Qxc8+ Nf8 35. Re8 {[%cal Be1e8,Be8f8,Bf8h8][%mdl 32]} Qxd5 36. Rxf8+ {White mates.} Kh7 37. Rh8+ Kg6 38. Qg4+ {Weighted Error Value: White=0.21 (precise) /Black=0.81} 1-0

[Event "ESP-ch Teams Primera 2022"]
[Site "Sanxenxo Pontevedra"]
[Date "2022.09.23"]
[Round "7.5"]
[White "Cao Armillas, Jesus"]
[Black "Gonzalez De La Torre, Santiago"]
[Result "0-1"]
[ECO "D47"]
[WhiteElo "2013"]
[BlackElo "2439"]
[Annotator "TA"]
[PlyCount "104"]
[EventDate "2022.09.17"]
[EventType "team-tourn"]
[EventCountry "ESP"]
[SourceTitle "playchess.com"]
[Source "ChessBase"]
[SourceQuality "1"]
[TimeControl "5400+30"]

{[%evp 25,104,21,19,-39,121,133,265,122,350,329,348,343,332,341,326,341,380,375,376,358,355,258,266,45,43,41,46,44,62,22,14,6,5,10,8,4,7,2,11,0,10,-38,-34,-33,0,0,0,0,0,0,0,-50,-52,-47,-62,-194,-189,-476,-478,-465,-467,-460,-460,-743,-529,-615,-615,-9163,-9163,-9163,-9163,-10240,-11320,-8391,-2799,-5518,-2930,-1916,-972,-1056,-501]} 1. d4 {[%emt 0:00:07]} d5 {[%emt 0:00:04]} 2. Nf3 {[%emt 0:00:04]} Nf6 {[%emt 0:00:05]} 3. c4 {[%emt 0:00:15]} c6 {[%emt 0:00:05]} 4. Nc3 {[%emt 0:00:19]} e6 {[%emt 0:00:06]} 5. e3 {[%emt 0:00:03]} Nbd7 {[%emt 0:00:05]} 6. Bd3 {[%emt 0:00:05]} dxc4 {[%emt 0:00:05]} 7. Bxc4 {[%emt 0:00:07]} b5 {[%emt 0:00:03]} 8. Bd3 {[%emt 0:00:06]} Bb7 {[%emt 0:00:17]} 9. O-O {[%emt 0:00:08]} a6 {[%emt 0:00:06]} 10. e4 {[%emt 0:00:29]} c5 {[%emt 0:00:05]} 11. d5 {[%emt 0:04:32]} c4 {[%emt 0:00:15]} 12. dxe6 {[%emt 0:01:07]} fxe6 {[%emt 0:00:05]} 13. Bc2 {[%emt 0:00:24]} Qc7 {[%emt 0:00:06]} 14. Be3 {[%emt 0:08:53] [#] D48: Semi-Slav: Meran System: 7...b5 8 Bd3 a6.} ({Better is} 14. Ng5 $11) 14... b4 $146 {[%emt 0:10:04]} (14... Ng4 $15 {stays ahead.}) ({Predecessor:} 14... Bc5 15. Qe2 O-O 16. Rad1 Bxe3 17. Qxe3 Ng4 18. Qg5 Rxf3 19. Qxg4 Rf6 20. f4 Raf8 21. Ne2 Ne5 {½-½ (31) Schoemig,A-Becker,F DESC email 2003}) 15. Ne2 $16 {[%emt 0:05:32]} Nxe4 {[%emt 0:07:01]} (15... Bc5 $16 {might work better.}) 16. Ned4 {[%emt 0:12:34]} (16. Nf4 $1 $18 {[%cal Rf4e6] and the rest is easy.}) 16... Nec5 {[%emt 0:22:23]} (16... Qd6 $16 {was necessary.}) 17. Ng5 $18 {[%emt 0:06:49][%csl LRe6,LRh7]} O-O-O {[%emt 0:00:32]} 18. Ngxe6 {[%emt 0:17:56]} Nxe6 {[%emt 0:00:20]} 19. Nxe6 {[%emt 0:00:10]} Qc6 {[%emt 0:00:08][%csl Gb7][%cal Rc6g2]} 20. Qg4 {[%emt 0:00:30]} Re8 {[%emt 0:00:12] Strongly threatening ...h5.} 21. Nd4 {[%emt 0:01:37]} h5 {[%emt 0:03:41]} 22. Qh3 {[%emt 0:03:27]} ({Stronger than} 22. Nxc6 hxg4 23. Na5 Bd6 $11) 22... Qd5 {[%emt 0:00:15]} 23. Bf5 {[%emt 0:08:39]} g5 {[%emt 0:03:48] [#]} 24. Bxd7+ {[%emt 0:08:34]} (24. Bxg5 $1 $18 Bc5 25. Ne6) 24... Qxd7 $14 {[%emt 0:00:07]} 25. Qxd7+ {[%emt 0:00:06]} ({Wrong is} 25. Bxg5 $2 Qxh3 26. gxh3 Rg8 $19) 25... Kxd7 {[%emt 0:00:04]} 26. Rfd1 {[%emt 0:01:01]} ({Reject} 26. Bxg5 Rg8 27. h4 Be7 $11) 26... g4 {[%emt 0:06:26]} 27. Rac1 {[%emt 0:01:35]} Rc8 {[%emt 0:00:07]} 28. Ne2+ {[%emt 0:05:23]} Ke8 {[%emt 0:05:55]} 29. Rd4 {[%emt 0:02:04]} Rh7 {[%emt 0:01:39]} 30. Rdxc4 {[%emt 0:01:32]} Rxc4 {[%emt 0:00:10]} 31. Rxc4 {[%emt 0:00:03]} Rd7 {[%emt 0:00:06][%cal Rd7d1]} 32. Rd4 {[%emt 0:02:06] Against Rd1+} Rc7 {[%emt 0:05:57]} 33. h3 {[%emt 0:04:31]} (33. Rd2 $11 {might be stronger.}) 33... gxh3 $15 {[%emt 0:06:23]} 34. gxh3 {[%emt 0:00:05]} Rg7+ {[%emt 0:00:07]} (34... Rc2 $5 {[%cal Rc2e2]} 35. Rd2 Rxd2 36. Bxd2 Bd5 $11) 35. Kf1 {[%emt 0:01:11]} Bg2+ {[%emt 0:00:43]} 36. Ke1 {[%emt 0:00:06]} Bxh3 {[%emt 0:00:29]} 37. Re4+ {[%emt 0:01:22]} Kf7 {[%emt 0:04:15]} 38. Ng3 {[%emt 0:03:16]} (38. f3 $11) 38... Rg4 {[%emt 0:00:52]} 39. Re5 {[%emt 0:01:28]} h4 {[%emt 0:01:03]} 40. Rf5+ {[%emt 0:00:28] [#]} (40. Ne2 $15) 40... Kg8 $1 $19 {[%emt 0:00:45]} 41. Ra5 $2 {[%emt 0:01:12]} (41. Ne2 {was worth a try.}) 41... hxg3 {[%emt 0:00:17] Black is clearly winning.} 42. fxg3 {[%emt 0:00:17]} Rxg3 {[%emt 0:00:16]} 43. Bf2 {[%emt 0:01:05]} Rg6 {[%emt 0:00:16][%cal Ob4b3] Threatens to win with ...b3!} 44. Kd2 {[%emt 0:00:37]} (44. Bd4 $142) 44... Bf1 {[%emt 0:01:02]} 45. Rd5 {[%emt 0:00:30]} Bc4 {[%emt 0:01:16][%csl LRa2,LRd5]} 46. Rd8 {[%emt 0:00:03]} Rd6+ {[%emt 0:00:09]} 47. Rxd6 {[%emt 0:00:03]} Bxd6 {[%emt 0:00:05]} 48. b3 {[%emt 0:00:28]} Bb5 {[%emt 0:01:32]} 49. Bb6 {[%emt 0:00:02]} Kf7 {[%emt 0:03:15]} 50. Kc2 {[%emt 0:00:28]} Ke6 {[%emt 0:00:22]} 51. Kb2 {[%emt 0:01:22]} Be5+ {[%emt 0:00:14]} 52. Kc2 {[%emt 0:00:47]} Kd5 {[%emt 0:00:08] Weighted Error Value: White=0.78/Black=0.30} (52... Bf6 $142 53. Bc5 Be7) 0-1

[Event "ESP-ch Teams Primera 2022"]
[Site "Sanxenxo Pontevedra"]
[Date "2022.09.23"]
[Round "7.6"]
[White "Buiza Prieto, Eihartze"]
[Black "Pablos Tenrero, Raquel"]
[Result "1-0"]
[ECO "A14"]
[WhiteElo "2080"]
[BlackElo "1985"]
[Annotator "TA"]
[PlyCount "209"]
[EventDate "2022.09.17"]
[EventType "team-tourn"]
[EventCountry "ESP"]
[SourceTitle "playchess.com"]
[Source "ChessBase"]
[SourceQuality "1"]
[TimeControl "5400+30"]

{[%evp 13,209,19,10,0,52,42,44,17,41,12,10,18,19,11,11,11,27,0,0,0,0,-1,44,26,94,102,100,44,57,76,106,105,105,112,112,106,108,104,99,106,113,113,113,115,111,109,109,109,129,126,124,124,151,125,138,132,142,131,154,141,141,139,153,155,151,155,272,219,242,133,156,145,188,193,185,200,247,197,266,287,543,473,471,283,288,289,583,441,769,550,1310,250,239,246,651,212,212,210,231,206,200,195,319,319,319,313,304,230,329,321,520,516,934,889,2769,2643,4255,4367,4133,924,1679,1200,988,952,5939,5406,5077,3616,4704,2006,2349,2185,1493,986,967,712,670,629,622,611,569,585,577,569,514,385,611,345,1672,1605,1750,824,1491,1485,1373,1272,1037,592,29978,29979,29979,29980,29980,29981,29990,29980,29982,29983,29987,29988,29988,29989,29989,29990,29990,29985,29985,29984,29983,29981,29984,29982,29987,0,29984,29981,29992,29981,29981,29982,29985,29986,29990,29991,29992,29991,29994,29995]} 1. Nf3 Nf6 2. c4 e6 3. g3 d5 4. Bg2 Be7 5. O-O O-O 6. b3 Re8 7. Bb2 Nbd7 8. Qc2 {[#] A14: English Opening: 1...e6 with b3 by White.} Bd6 $146 (8... b6 $11) ({Predecessor:} 8... Bf8 9. d3 c6 10. Nbd2 e5 11. e3 b6 12. a3 a5 13. Bc3 Bb7 14. b4 a4 15. Bb2 b5 {1-0 (47) Markowski,T (2629)-Leniart,A (2439) Warsaw 2009}) 9. d4 b6 10. Nbd2 {White is slightly better.} (10. Ne5 {seems wilder.} Bb7 11. e3 Qe7 12. Rd1) 10... Bb7 11. Rac1 Rc8 12. Rfd1 Qe7 13. Ne5 c5 14. Nxd7 Nxd7 15. e4 {[%cal Re4d5]} (15. Qb1 {keeps more tension.} cxd4 16. Bxd4 Bc5 17. Bb2) 15... cxd4 16. exd5 exd5 17. Bxd4 Ba8 18. Re1 Qf8 (18... Qd8 $11 {remains equal.}) 19. Qf5 $1 $16 Bb4 20. Red1 {White is much more active.} (20. Qxd7 $16 Bxd2 21. Rxe8 Qxe8 22. Qxe8+ Rxe8 23. Rd1) 20... Qd6 21. Nf1 Qe6 22. Qxe6 fxe6 {[#]} 23. cxd5 $1 Bxd5 24. Bxd5 exd5 25. Ne3 Rxc1 26. Rxc1 Bc5 27. Bxc5 Nxc5 {[%mdl 4096] Endgame KRN-KRN} 28. Rd1 Kf7 29. Kf1 Ne4 30. Nxd5 Re5 31. f3 Nc5 32. Kf2 Nb7 33. Nb4 Ke8 34. Rd2 Rc5 35. h4 Nd8 36. g4 Ne6 37. Kg3 Ke7 38. Nd5+ Kf7 39. Ne3 Ke7 {[#] Inhibits Rd7+.} (39... Ke8 $16 40. h5 Ke7 41. Nd5+ Kf7) 40. Nf5+ $1 $18 Kf6 41. Nd6 ({Better is} 41. Rd6 $18) 41... Ke7 42. g5 g6 43. Ne4 Ra5 44. Nf6 Nf8 {Inhibits Rd7+.} 45. f4 Kf7 (45... h5 {might work better.} 46. Ng8+ Kf7) 46. Rc2 {Rc7+ is the strong threat.} h6 $2 (46... h5 47. Rc7+ Ke6 48. Rc6+ Ke7 49. Ng8+ Kd8) 47. Rc7+ Ke6 48. a4 {Strongly threatening Rc6+.} hxg5 49. hxg5 (49. fxg5 Rc5 50. Rxc5 (50. Rxa7 Rc3+ 51. Kf2 Rxb3 $18) 50... bxc5 $18) 49... Kf5 $2 (49... Rc5 50. Rxa7 Rc3+ 51. Kg4 Rxb3) 50. Ng4 Ne6 (50... Ke4 $142 51. Ne5 Rc5) 51. Re7 Nxf4 52. Rf7+ $2 (52. b4) 52... Kxg5 {And now ...Ne2+ would win.} 53. Rxf4 {KRN-KR} b5 $2 (53... Rc5 54. Rf7 Rc3+ 55. Rf3 Rc1) 54. Nf2 $2 (54. Ne5 {Intending Nf7+ and mate.} Kh6 55. Nc6) 54... bxa4 55. bxa4 Kh6 56. Nd3 Rd5 57. Nb4 Ra5 (57... Rc5 {is a better defense.} 58. Rd4 Rg5+ 59. Kf4 Rc5) 58. Nc6 Ra6 59. Rc4 Kg7 60. Ne5 Re6 (60... Ra5 $142 61. Nc6 Ra6) 61. Rc7+ Kg8 $2 (61... Kf6 62. Ng4+ (62. Rxa7 Kxe5 63. Ra8 Kd4 $11) 62... Kf5 63. Rxa7 Ke4) 62. Nc6 {Black must now prevent a5.} a6 (62... a5 $142 63. Kf4 Kf8) 63. a5 Kf8 64. Kf4 Ke8 65. Nd4 g5+ 66. Kf5 (66. Kxg5 $142 Re7 67. Rxe7+ Kxe7 68. Nb3 Kd7 69. Kf5 (69. Nc5+ Kc6 $11) 69... Kd6 70. Ke4 Kc6 71. Kd4) 66... Rd6 67. Ke5 Rh6 68. Rc6 Rh1 69. Rxa6 Ra1 70. Nb3 Ra3 71. Rb6 g4 72. Kf4 Ra4+ 73. Kg3 {aiming for a6.} Kd8 74. Rb5 {Threatens to win with Nc5.} Kc7 75. Nd2 Kc6 76. Re5 Kd6 77. Rg5 Kc6 78. Kf2 Kb7 {[%cal Og4g3]} 79. Nb3 {Threatening mate with Nc5+.} Ra3 (79... Rb4 $142 80. Nc5+ Kc6) 80. Nc5+ Ka7 $2 (80... Kc6 81. Na6 (81. Rxg4 Kxc5 82. Rg7 Rxa5 $11) 81... Rf3+ 82. Kg2 Rb3 83. Rg6+ (83. Rxg4 Kb5 $14) 83... Kd5 84. Rxg4 Rb2+ 85. Kf3 Rb1) 81. Rg7+ Ka8 82. a6 Ra5 83. Rg5 {Hoping for Ke3.} Ka7 84. Ke3 Kb6 85. Kd4 Rb5 86. Rg6+ Ka7 87. Rg7+ Ka8 88. Kc4 Ra5 89. Rxg4 Ka7 90. Rg7+ Ka8 91. Kb4 Ra1 92. Na4 Rb1+ 93. Ka5 Ra1 94. Kb5 Rb1+ 95. Kc6 Rc1+ 96. Nc5 Rh1 97. Rd7 Rb1 98. Rg7 Rh1 $1 99. Nb3 {Against Ra1. White mates.} Rb1 100. Rg3 Ka7 101. Kb5 Rh1 102. Rg7+ Ka8 103. Nd4 Rb1+ 104. Kc5 Rc1+ 105. Kb6 {Weighted Error Value: White=0.35/Black=0.42} 1-0